bitfinex/quotes_ETHUSD_20250815
["timestamp","ask_amount","ask_price","bid_price","bid_amount"]
[1755250421185,1.1817,4636.0,4635.9,2.26507845]
[1755250421999,0.4634,4636.0,4635.9,2.26507845]
[1755250422205,1.1817,4636.0,4635.9,2.26507845]
[1755250422680,1.1817,4636.0,4635.9,2.26587845]
[1755250422885,4.23,4636.1,4635.9,2.26587845]
[1755250423105,0.4634,4636.0,4635.9,0.1088]
[1755250423477,1.65144,4636.0,4635.9,0.0008]
[1755250423676,1.1817,4636.0,4635.9,0.0008]
[1755250424572,1.1837,4636.0,4635.9,0.0008]
[1755250426709,5.4137,4636.0,4635.9,0.0008]
[1755250429181,4.232,4636.0,4635.9,2.15787845]
[1755250429820,4.232,4636.0,4635.9,2.26587845]
[1755250431326,4.232,4636.0,4635.9,2.70818236]
[1755250432923,4.232,4636.0,4635.9,2.26587845]
[1755250438917,4.6772,4636.0,4635.9,2.26587845]
[1755250439316,5.3745,4636.0,4635.9,5.61387845]
[1755250441829,4.232,4636.0,4635.9,5.61387845]
[1755250442229,4.232,4636.0,4635.9,2.26587845]
[1755250442434,4.232,4636.0,4635.9,6.05628127]
[1755250443335,4.232,4636.0,4635.9,6.36958127]
[1755250443717,4.232,4636.0,4635.9,6.96838127]
[1755250445337,4.232,4636.0,4635.9,6.05628127]
[1755250449039,1e-08,4636.0,4635.9,10.51838127]
[1755250449238,1e-08,4636.2,4636.1,5.70698539]
[1755250449640,1e-08,4636.2,4636.1,9.05578539]
[1755250450253,1e-08,4636.2,4636.1,8.50578539]
[1755250452738,0.44440001,4636.8,4636.7,2.15670627]
[1755250452945,0.44440001,4636.8,4636.7,5.50370627]
[1755250453146,0.44440001,4636.8,4636.7,6.37775428]
[1755250453651,1.14170001,4636.8,4636.7,6.37775428]
[1755250453830,1.14170001,4636.8,4636.7,3.03075428]
[1755250454028,1.14170001,4636.8,4636.7,6.37775428]
[1755250455262,1.14170001,4636.8,4636.7,5.61170627]
[1755250457357,1.14090001,4636.8,4636.7,5.61170627]
[1755250458723,1.14090001,4636.8,4636.7,2.26470627]
[1755250458963,1.14090001,4636.8,4636.7,5.61170627]
[1755250459163,1.14290001,4636.8,4636.7,5.61170627]
[1755250461961,4.23,4637.5,4637.4,2.15638073]
[1755250462158,0.4624,4638.3,4637.4,3.347]
[1755250462362,0.4624,4638.3,4638.2,2.15600879]
[1755250462733,1.1892,4638.3,4638.2,2.15600879]
[1755250463278,1.1892,4638.3,4637.5,0.3347]
[1755250463431,2.15573943,4638.8,4637.9,2.15613346]
[1755250463630,1.20936281,4638.7,4637.9,5.50213346]
[1755250463847,1.20936281,4638.7,4638.0,2.15609222]
[1755250464033,1.1892,4638.6,4638.0,2.15609222]
[1755250464361,1.1892,4638.5,4638.0,2.15609966]
[1755250464662,1.1892,4638.4,4637.8,2.15618219]
[1755250464828,6.1897087,4638.5,4637.8,2.15618219]
[1755250465026,1.1892,4638.3,4637.8,2.15618219]
[1755250465253,6.1897087,4638.5,4637.8,2.15618219]
[1755250465561,1.1892,4638.2,4637.8,2.15618219]
[1755250465764,1.1892,4638.1,4637.8,2.15618219]
[1755250466163,3.346,4638.4,4637.8,2.15618219]
[1755250466470,1.1892,4638.0,4637.7,2.15623101]
[1755250466671,1.1892,4637.9,4637.8,2.15618983]
[1755250466869,1.1892,4637.9,4637.6,3.346]
[1755250467041,3.346,4638.4,4637.7,2.1562073]
[1755250467240,1.1892,4637.8,4637.7,2.1562073]
[1755250468687,1.1892,4637.8,4636.7,0.77684989]
[1755250468851,6.1897087,4637.6,4636.9,2.15661316]
[1755250469053,6.1897087,4637.6,4636.7,5.50269257]
[1755250469253,1.1892,4637.5,4636.7,5.50269257]
[1755250469555,1.1892,4637.4,4636.7,5.50269257]
[1755250469752,0.4624,4637.3,4637.1,2.15648276]
[1755250469976,0.4624,4637.3,4637.1,2.15649735]
[1755250470197,3.346,4637.8,4637.1,2.15649735]
[1755250470357,0.4624,4637.2,4637.1,2.15649735]
[1755250472093,0.4624,4637.2,4637.1,2.26449735]
[1755250472862,1.1892,4637.2,4637.1,0.108]
[1755250473693,1.1892,4637.2,4636.7,2.15749734]
[1755250473694,5.4192,4637.2,4636.7,0.0008]
[1755250473898,1.1892,4637.1,4636.8,0.108]
[1755250474393,1.1892,4637.0,4636.8,0.108]
[1755250474700,1.1892,4637.1,4636.8,0.108]
[1755250475090,4.23,4637.2,4637.0,0.108]
[1755250475696,4.23,4637.2,4637.1,2.15652023]
[1755250476285,4.23,4637.2,4637.1,5.50152023]
[1755250476487,4.232,4637.2,4637.1,6.3861313]
[1755250477513,4.232,4637.2,4637.1,2.26452023]
[1755250477666,4.6944,4637.2,4637.1,2.26452023]
[1755250478004,5.4212,4637.2,4637.1,0.108]
[1755250481617,5.4212,4637.2,4636.8,0.108]
[1755250481777,5.4212,4637.2,4636.8,2.26461824]
[1755250481967,0.4624,4637.1,4636.8,0.108]
[1755250482473,1.1892,4637.0,4636.8,0.108]
[1755250483040,0.4624,4636.9,4636.8,0.108]
[1755250483181,1.1892,4636.9,4636.8,0.108]
[1755250483380,1.1892,4636.9,4636.7,0.0008]
[1755250483381,5.45016878,4636.9,4636.7,0.0008]
[1755250483610,6.97722257,4636.8,4636.7,0.0008]
[1755250483812,6.95705976,4636.8,4636.7,0.0008]
[1755250484023,7.68385976,4636.8,4636.7,0.0008]
[1755250484200,5.5272,4636.8,4636.7,0.0008]
[1755250484612,9.31283037,4636.8,4636.7,0.0008]
[1755250485130,7.15617061,4636.8,4636.7,0.0008]
[1755250485622,7.15617061,4636.8,4636.6,0.001]
[1755250485623,4.2282,4636.6,4636.2,0.001]
[1755250485928,3.345,4636.5,4636.2,2.15793158]
[1755250486126,4.2282,4636.4,4636.2,2.15793158]
[1755250487407,4.2282,4636.4,4636.2,0.001]
[1755250487615,4.2282,4636.4,4636.2,2.1579362]
[1755250487821,4.2282,4636.4,4636.2,0.001]
[1755250488023,1.1892,4636.3,4636.2,0.001]
[1755250488838,5.4174,4636.3,4636.2,0.001]
[1755250490037,5.4174,4636.3,4636.2,0.0018]
[1755250490245,8.7624,4636.3,4636.2,0.0018]
[1755250491041,7.5732,4636.3,4636.2,0.0018]
[1755250491241,4.2282,4636.3,4636.2,0.0018]
[1755250491447,7.5732,4636.3,4636.2,0.1098]
[1755250491649,4.2282,4636.3,4636.2,2.26673887]
[1755250492157,4.2282,4636.3,4636.2,0.1098]
[1755250492356,4.2282,4636.3,4636.2,0.0018]
[1755250492357,5.3653,4636.3,4636.2,0.0018]
[1755250493163,8.7103,4636.3,4636.2,0.0018]
[1755250493356,9.79700787,4636.3,4636.2,0.0018]
[1755250494038,11.95390021,4636.3,4636.2,0.0018]
[1755250494936,18.14280891,4636.3,4636.2,0.0018]
[1755250495137,18.25080891,4636.3,4636.2,0.0018]
[1755250496150,21.25080891,4636.3,4636.2,0.0018]
[1755250499376,21.25000891,4636.3,4636.2,0.0018]
[1755250500646,5.70693887,4636.2,4636.1,0.001]
[1755250500845,8.14407039,4636.2,4636.1,0.001]
[1755250501762,12.37067039,4636.2,4636.1,0.001]
[1755250502140,12.8330104,4636.2,4636.1,0.001]
[1755250503096,2.70726458,4635.5,4635.4,0.001]
[1755250503253,15.26113609,4635.5,4635.4,0.001]
[1755250503453,17.57278115,4635.5,4635.4,0.001]
[1755250503656,11.38307245,4635.5,4635.4,0.001]
[1755250504486,8.03907245,4635.5,4635.4,0.001]
[1755250504698,13.67878115,4635.5,4635.4,0.001]
[1755250504901,17.02278115,4635.5,4635.4,0.001]
[1755250508893,21.24938115,4635.5,4635.4,0.001]
[1755250512103,13.81457245,4635.5,4635.4,0.001]
[1755250512394,12.72786458,4635.5,4635.4,0.001]
[1755250512805,18.91757328,4635.5,4635.4,0.001]
[1755250513018,19.36157328,4635.5,4635.4,0.001]
[1755250513376,20.05467328,4635.5,4635.4,0.001]
[1755250513712,16.71067328,4635.5,4635.4,0.001]
[1755250513886,20.05467328,4635.5,4635.4,0.001]
[1755250514289,19.36157328,4635.5,4635.4,0.001]
[1755250514917,16.01757328,4635.5,4635.4,0.001]
[1755250515082,19.36157328,4635.5,4635.4,0.001]
[1755250515416,20.05467328,4635.5,4635.4,0.001]
[1755250519027,13.86496458,4635.5,4635.4,0.001]
[1755250519205,20.05467328,4635.5,4635.4,0.001]
[1755250519407,15.82807328,4635.5,4635.4,0.001]
[1755250520395,15.82707328,4635.5,4635.4,0.001]
[1755250522292,14.68997328,4635.5,4635.4,0.001]
[1755250522595,17.59031856,4635.5,4635.4,0.001]
[1755250524108,2.15735766,4635.3,4634.9,0.001]
[1755250524294,15.36822917,4635.3,4634.9,0.001]
[1755250524498,15.34806636,4635.3,4634.9,0.001]
[1755250524699,17.02506047,4635.3,4634.9,0.001]
[1755250525299,17.48749335,4635.3,4634.9,0.001]
[1755250526143,6.20148465,4635.3,4634.9,0.001]
[1755250526310,9.07079054,4635.3,4634.9,0.001]
[1755250527642,5.72779054,4635.3,4634.9,0.001]
[1755250527843,9.07079054,4635.3,4634.9,0.001]
[1755250528434,5.72779054,4635.3,4634.9,0.001]
[1755250528610,6.91343288,4635.3,4634.9,0.001]
[1755250528814,3.91343288,4635.3,4634.9,0.001]
[1755250529010,3.451,4635.3,4635.2,0.8432]
[1755250529314,3.451,4635.3,4635.2,0.001]
[1755250530735,8.60835766,4635.3,4635.2,0.001]
[1755250533342,10.84702125,4635.3,4635.2,0.001]
[1755250533919,11.50872125,4635.3,4635.2,0.001]
[1755250534547,9.70365766,4635.3,4635.2,0.001]
[1755250535419,8.60835766,4635.3,4635.2,0.001]
[1755250535624,6.451,4635.3,4635.2,0.001]
[1755250535828,4.3346,4635.3,4635.2,2.15840421]
[1755250536145,7.5686,4635.3,4635.2,1.27498978]
[1755250536918,7.5686,4635.3,4635.2,0.8432]
[1755250537121,7.5678,4635.3,4635.2,0.8432]
[1755250538654,7.5678,4635.3,4635.2,0.001]
[1755250541559,4.2258,4635.3,4635.2,0.001]
[1755250541758,7.5668,4635.3,4635.2,0.001]
[1755250544162,8.0004,4635.3,4635.2,0.001]
[1755250544963,8.6621,4635.3,4635.2,0.001]
[1755250545666,10.81945766,4635.3,4635.2,0.001]
[1755250546023,8.6621,4635.3,4635.2,0.001]
[1755250546223,8.0004,4635.3,4635.2,0.001]
[1755250546429,7.5668,4635.3,4635.2,0.001]
[1755250547048,4.2258,4635.3,4635.2,0.001]
[1755250547247,7.5668,4635.3,4635.2,0.001]
[1755250548005,7.5688,4635.3,4635.2,0.001]
[1755250549481,7.5678,4635.3,4635.2,0.001]
[1755250549679,4.2278,4635.3,4635.2,0.001]
[1755250549878,7.5678,4635.3,4635.2,0.001]
[1755250550254,7.5678,4635.3,4635.2,2.15840421]
[1755250550454,7.5678,4635.3,4635.2,2.62168723]
[1755250550964,4.2278,4635.3,4635.2,3.14068723]
[1755250551162,4.2278,4635.3,4635.2,3.56358723]
[1755250553186,4.2278,4635.3,4635.2,2.72968723]
[1755250555481,4.2278,4635.3,4635.2,2.26640421]
[1755250556091,4.2278,4635.3,4635.2,0.109]
[1755250556398,5.3168,4635.3,4635.2,0.001]
[1755250558169,8.6558,4635.3,4635.2,0.001]
[1755250560307,9.73711204,4635.3,4635.2,0.001]
[1755250561086,8.6558,4635.3,4635.2,0.001]
[1755250562269,7.5668,4635.3,4635.2,0.001]
[1755250562805,4.2278,4635.3,4635.2,2.26640421]
[1755250563026,4.2278,4635.3,4635.2,2.58130421]
[1755250563312,4.2278,4635.3,4635.2,2.74048164]
[1755250565539,0.002,4635.3,4635.2,3.55428164]
[1755250567618,0.002,4635.3,4635.2,3.57585568]
[1755250567912,1e-08,4635.3,4635.2,6.55428164]
[1755250568284,1e-08,4635.3,4635.2,7.10428164]
[1755250568673,1e-08,4635.3,4635.2,7.19065864]
[1755250568879,0.002,4636.6,4635.7,2.70713669]
[1755250569199,0.002,4636.6,4636.2,8.45464757]
[1755250569406,0.002,4636.6,4636.2,2.26493887]
[1755250569618,0.002,4636.6,4636.2,5.91783887]
[1755250569922,0.002,4636.6,4636.2,6.41673887]
[1755250570120,0.002,4636.6,4636.2,5.91783887]
[1755250570422,0.002,4636.6,4636.2,7.02532358]
[1755250571328,0.002,4636.6,4636.2,6.71042358]
[1755250571531,0.002,4636.6,4636.2,7.52422358]
[1755250572018,0.002,4636.6,4636.2,6.71042358]
[1755250572399,0.002,4636.6,4636.2,3.37242358]
[1755250572599,0.002,4636.6,4636.2,6.70942358]
[1755250574633,0.002,4636.6,4636.2,7.52322358]
[1755250574829,0.002,4636.6,4636.2,6.70942358]
[1755250578721,0.002,4636.6,4636.2,3.37242358]
[1755250578925,0.002,4636.6,4636.2,6.70742358]
[1755250579412,0.0012,4636.3,4636.2,6.70742358]
[1755250580550,0.0004,4636.3,4636.2,6.70742358]
[1755250580728,0.0004,4636.3,4636.2,6.70822358]
[1755250585328,0.453,4636.3,4636.2,6.70822358]
[1755250585649,0.453,4636.3,4636.2,3.37322358]
[1755250585953,1.0949,4636.3,4636.2,0.1088]
[1755250586129,5.3207,4636.3,4636.2,0.1088]
[1755250586452,5.3207,4636.3,4635.2,0.47507743]
[1755250586453,2.1569877,4636.1,4635.6,0.108]
[1755250586656,5.00453158,4636.0,4635.2,0.001]
[1755250586822,0.108,4635.7,4635.2,0.001]
[1755250587018,2.15735766,4635.3,4635.2,0.001]
[1755250587356,7.87835174,4635.3,4635.2,0.001]
[1755250587557,2.15740421,4635.2,4635.1,0.001]
[1755250587762,9.44161291,4635.2,4635.1,0.001]
[1755250591659,3.25190421,4635.2,4635.1,0.001]
[1755250591958,4.5365,4635.2,4635.1,0.001]
[1755250592125,6.69390421,4635.2,4635.1,0.001]
[1755250592331,10.91970421,4635.2,4635.1,0.001]
[1755250593566,12.22740209,4635.2,4635.1,0.001]
[1755250593767,15.22740209,4635.2,4635.1,0.001]
[1755250598266,15.22740209,4635.2,4634.4,0.001]
[1755250598568,4.2198,4634.4,4634.2,0.001]
[1755250598736,3.334,4634.3,4634.2,0.001]
[1755250601775,7.5538,4634.3,4634.2,0.001]
[1755250604377,7.5538,4634.3,4634.2,2.15886975]
[1755250605879,7.5538,4634.3,4634.2,0.001]
[1755250606084,8.6483,4634.3,4634.2,0.001]
[1755250607251,4.4285,4634.3,4634.2,0.001]
[1755250609562,3.334,4634.3,4634.2,2.15886975]
[1755250610273,4.4285,4634.3,4634.2,0.001]
[1755250612094,4.4285,4634.3,4634.2,2.15886975]
[1755250612266,3.334,4634.3,4634.2,2.15886975]
[1755250612467,0.108,4634.6,4634.5,2.15773006]
[1755250612691,3.441,4634.6,4634.5,2.15773006]
[1755250612893,4.2198,4635.6,4634.5,0.43165251]
[1755250613196,0.108,4635.3,4634.9,2.15754279]
[1755250613366,4.4154,4635.2,4634.8,2.15758686]
[1755250613564,1.0834,4635.1,4634.8,2.15758686]
[1755250613765,4.4154,4635.0,4634.8,2.15758686]
[1755250613990,3.9653,4635.0,4634.8,2.15758686]
[1755250614194,1.0834,4634.9,4634.8,2.15758686]
[1755250614362,5.3032,4634.9,4634.8,2.15758686]
[1755250614695,5.3032,4634.9,4634.5,2.26572715]
[1755250614696,5.3032,4634.9,4634.5,0.108]
[1755250614993,4.43556281,4634.8,4634.5,0.108]
[1755250615295,4.2198,4634.7,4634.2,2.15886228]
[1755250615491,4.2198,4634.7,4634.5,2.15773006]
[1755250615492,3.35216281,4634.6,4634.5,2.15773006]
[1755250615799,4.43556281,4634.6,4634.5,2.15773006]
[1755250616002,8.6352,4634.6,4634.5,2.15773006]
[1755250616868,8.6352,4634.6,4634.3,2.26577894]
[1755250617193,1.0834,4634.5,4634.3,2.26577894]
[1755250617370,0.6333,4634.5,4634.3,2.26577894]
[1755250617695,0.4501,4634.4,4634.3,2.26577894]
[1755250618067,3.7821,4634.4,4634.3,2.26577894]
[1755250619197,4.4154,4634.4,4634.3,2.15782318]
[1755250619893,3.7821,4634.4,4634.3,2.15782318]
[1755250620298,3.7821,4634.4,4634.2,0.001]
[1755250620598,3.7821,4634.4,4634.2,2.15885588]
[1755250620794,0.4501,4634.3,4634.2,2.15886936]
[1755250621199,0.4501,4634.3,4634.2,0.001]
[1755250621378,1.0834,4634.3,4634.2,0.001]
[1755250621574,0.4493,4634.3,4634.2,2.15886975]
[1755250621886,3.332,4634.4,4634.3,2.15782318]
[1755250622088,7.04,4634.9,4634.3,2.15782318]
[1755250622301,3.331,4634.8,4634.5,2.15771219]
[1755250622609,3.331,4634.8,4634.2,0.109]
[1755250622610,3.331,4634.8,4634.4,2.15776431]
[1755250622807,0.6333,4634.7,4634.3,2.15781262]
[1755250623013,3.9643,4634.6,4634.2,0.001]
[1755250623213,0.108,4634.5,4634.2,2.1588566]
[1755250623515,0.108,4634.5,4634.3,2.15782318]
[1755250623516,3.9643,4634.4,4634.3,2.15782318]
[1755250623816,3.331,4634.4,4634.3,2.15782318]
[1755250626810,3.331,4634.4,4634.2,0.001]
[1755250627108,4.25016281,4634.3,4634.2,0.001]
[1755250627290,5.3134,4634.3,4634.2,0.001]
[1755250630542,8.96543405,4634.3,4634.2,0.001]
[1755250630709,11.96543405,4634.3,4634.2,0.001]
[1755250631715,6.38591631,4634.1,4634.0,0.001]
[1755250631900,26.49562501,4634.1,4634.0,0.001]
[1755250632100,27.83825353,4634.1,4634.0,0.001]
[1755250632313,28.47155353,4634.1,4634.0,0.001]
[1755250632518,28.93470488,4634.1,4634.0,0.001]
[1755250633997,25.71270488,4634.1,4634.0,0.001]
[1755250634205,29.04270488,4634.1,4634.0,0.001]
[1755250634910,29.01550488,4634.1,4634.0,0.001]
[1755250635514,22.82579618,4634.1,4634.0,0.001]
[1755250635850,29.01550488,4634.1,4634.0,0.001]
[1755250636925,29.01550488,4634.1,4633.8,0.001]
[1755250637130,4.08104053,4633.1,4632.6,0.001]
[1755250637347,3.33,4633.0,4632.6,0.001]
[1755250637663,3.438,4633.0,4632.6,0.001]
[1755250638017,7.51904053,4633.0,4632.6,0.001]
[1755250638244,11.65339771,4633.0,4632.6,0.001]
[1755250638956,8.41156905,4633.0,4632.6,0.001]
[1755250640679,8.41156905,4633.0,4632.9,0.0018]
[1755250640866,11.02009771,4633.0,4632.9,0.0018]
[1755250641020,11.65339771,4633.0,4632.9,0.0018]
[1755250642267,18.69339771,4633.0,4632.9,0.0018]
[1755250642958,21.69339771,4633.0,4632.9,0.0018]
[1755250646946,20.60999771,4633.0,4632.9,0.0018]
[1755250647152,18.45056905,4633.0,4632.9,0.0018]
[1755250647455,20.60899771,4633.0,4632.9,0.0018]
[1755250648638,18.45056905,4633.0,4632.9,0.0018]
[1755250649243,17.55804053,4633.0,4632.9,0.0018]
[1755250649478,4.08104053,4633.0,4632.9,0.3185]
[1755250649656,4.08104053,4633.0,4632.9,2.91347525]
[1755250649854,4.08104053,4633.0,4632.9,0.755]
[1755250650276,4.08104053,4633.0,4632.9,0.0018]
[1755250650789,4.10120334,4633.0,4632.9,0.0018]
[1755250651087,5.09793951,4633.0,4632.9,0.0018]
[1755250651292,17.52277687,4633.0,4632.9,0.0018]
[1755250652252,10.72876817,4633.0,4632.9,0.0018]
[1755250652452,10.25636817,4633.0,4632.9,0.0018]
[1755250652981,17.52277687,4633.0,4632.9,0.0018]
[1755250653155,24.56277687,4633.0,4632.9,0.0018]
[1755250654967,18.37306817,4633.0,4632.9,0.0018]
[1755250655287,21.70106817,4633.0,4632.9,0.0018]
[1755250656585,15.13793951,4633.0,4632.9,0.0018]
[1755250656754,3.328,4633.0,4632.9,2.16027273]
[1755250656949,3.328,4633.0,4632.9,2.91347273]
[1755250658184,3.328,4633.0,4632.9,0.0018]
[1755250663904,3.3272,4633.0,4632.9,0.0018]
[1755250664700,3.3272,4633.0,4632.9,2.16027525]
[1755250665008,3.3272,4633.0,4632.9,0.0018]
[1755250665408,3.3272,4633.0,4632.9,2.16027525]
[1755250665715,3.3272,4633.0,4632.9,0.0018]
[1755250666812,3.3272,4633.0,4632.9,2.16027525]
[1755250667515,8.34772157,4633.9,4632.9,0.0018]
[1755250667516,2.15801794,4633.9,4632.9,0.0018]
[1755250667810,0.108,4633.5,4633.3,2.15825368]
[1755250668012,3.327,4633.4,4632.9,0.0018]
[1755250668314,0.108,4633.5,4633.4,2.15824232]
[1755250668516,0.108,4633.5,4633.3,2.15907747]
[1755250668920,0.108,4633.5,4633.4,2.15824232]
[1755250672333,4.18904053,4633.5,4633.4,2.15824232]
[1755250678803,4.18904053,4633.5,4633.3,2.15908257]
[1755250679003,3.325,4633.4,4633.3,0.0008]
[1755250679726,3.325,4633.4,4633.3,2.1590889]
[1755250680652,3.325,4633.4,4633.3,0.0008]
[1755250680845,4.3809,4633.4,4633.3,0.0008]
[1755250680989,6.88244232,4633.4,4633.3,0.0008]
[1755250681832,4.7242,4633.4,4633.3,0.0008]
[1755250682128,6.88244232,4633.4,4633.3,0.0008]
[1755250682333,3.6683,4633.4,4633.3,0.0008]
[1755250682635,3.325,4633.4,4633.3,0.0008]
[1755250685810,3.325,4633.4,4633.3,2.1590889]
[1755250686398,0.108,4633.5,4633.3,2.1590889]
[1755250686597,3.324,4633.4,4633.3,0.0008]
[1755250687840,0.002,4634.0,4633.3,0.0008]
[1755250688006,3.324,4633.9,4633.4,2.15824232]
[1755250688201,3.324,4633.9,4633.3,0.0008]
[1755250688202,3.324,4633.9,4633.5,2.15815083]
[1755250688403,3.324,4633.9,4633.6,2.15813427]
[1755250688940,3.324,4633.9,4633.6,2.15814454]
[1755250689257,3.324,4633.9,4633.7,2.15810188]
[1755250689695,3.324,4633.9,4633.6,2.15814127]
[1755250690053,3.324,4633.9,4633.5,0.0008]
[1755250690222,0.4567,4633.8,4633.5,0.0008]
[1755250690429,0.108,4633.6,4633.5,0.0008]
[1755250690603,3.4302,4633.6,4633.5,0.0008]
[1755250690797,0.7064,4633.6,4633.5,0.0008]
[1755250691005,3.9222,4633.6,4633.5,2.15899574]
[1755250691438,3.323,4633.6,4633.5,2.15899574]
[1755250693006,7.40404053,4633.6,4633.5,2.15899574]
[1755250693843,4.08104053,4633.6,4633.5,2.15899574]
[1755250694145,4.08104053,4633.6,4633.5,2.60152337]
[1755250695398,4.08104053,4633.6,4633.5,2.70952337]
[1755250695804,4.08104053,4633.6,4633.5,3.44122337]
[1755250696941,4.08104053,4633.6,4633.5,3.46280532]
[1755250698670,4.08104053,4633.6,4633.5,6.44122337]
[1755250699047,0.002,4634.0,4633.9,2.15800945]
[1755250699246,0.002,4634.0,4633.9,5.91161797]
[1755250699459,0.002,4634.0,4633.9,9.75131797]
[1755250699841,0.002,4634.0,4633.9,10.30131797]
[1755250700672,1e-08,4634.1,4634.0,19.2966695]
[1755250700836,1e-08,4634.1,4634.0,19.6133695]
[1755250701032,1e-08,4634.1,4634.0,22.23283354]
[1755250703866,1e-08,4634.1,4634.0,21.81783354]
[1755250704374,1e-08,4634.1,4634.0,22.23283354]
[1755250704594,1e-08,4634.1,4634.0,25.55383354]
[1755250706162,0.00120001,4634.4,4634.3,5.70782318]
[1755250706356,0.00120001,4634.4,4634.3,11.23328722]
[1755250706591,1e-08,4634.4,4634.3,11.54998722]
[1755250706884,1e-08,4634.4,4634.3,11.94328722]
[1755250707069,1e-08,4634.4,4634.3,12.05128722]
[1755250707268,1e-08,4634.4,4634.3,12.15843067]
[1755250707785,1e-08,4634.4,4634.3,12.05128722]
[1755250709161,1e-08,4634.4,4634.3,12.05208722]
[1755250709760,1e-08,4634.4,4634.3,11.65878722]
[1755250710099,1e-08,4634.4,4634.3,12.05208722]
[1755250710313,1e-08,4634.4,4634.3,11.65878722]
[1755250710604,1e-08,4634.4,4634.3,11.34208722]
[1755250718603,1e-08,4634.4,4634.3,7.47108722]
[1755250718914,1.05260001,4634.4,4634.3,8.58462318]
[1755250721315,1e-08,4634.4,4634.3,8.47662318]
[1755250721516,1e-08,4634.4,4634.3,9.13462318]
[1755250722921,1e-08,4634.4,4634.3,5.26662318]
[1755250723091,1.05260001,4634.4,4634.3,8.58462318]
[1755250723919,1e-08,4634.4,4634.3,9.65887454]
[1755250724128,1e-08,4634.6,4634.5,5.70773006]
[1755250724322,1e-08,4634.6,4634.5,9.02573006]
[1755250724493,1e-08,4634.8,4634.7,2.70763695]
[1755250724696,1e-08,4634.8,4634.7,21.07298977]
[1755250725515,1e-08,4634.8,4634.7,21.18098977]
[1755250726896,0.002,4635.1,4634.7,21.18098977]
[1755250726897,0.002,4635.1,4634.8,3.55]
[1755250727106,1e-08,4635.2,4635.1,2.15745075]
[1755250727298,1e-08,4635.2,4635.1,6.86137765]
[1755250727497,1e-08,4635.2,4635.1,6.83980315]
[1755250728117,1e-08,4635.2,4635.1,7.38980315]
[1755250729135,0.0004,4636.3,4635.1,7.38980315]
[1755250729136,0.0004,4636.3,4636.1,2.15698539]
[1755250729337,0.0004,4636.3,4636.1,8.47398539]
[1755250729629,1.0546,4636.2,4636.1,10.78724943]
[1755250730198,1.0546,4636.2,4636.1,8.58278539]
[1755250730610,1.0546,4636.2,4636.1,5.26578539]
[1755250730841,1.0546,4636.2,4636.1,8.58278539]
[1755250731037,1.0546,4636.2,4636.1,5.26578539]
[1755250732626,1.0538,4636.2,4636.1,5.26578539]
[1755250733135,1.0538,4636.2,4636.1,2.26578539]
[1755250737959,0.4362,4636.2,4636.1,2.26578539]
[1755250738162,1.0452,4636.2,4636.1,2.26578539]
[1755250741679,0.0012,4636.2,4636.1,2.26578539]
[1755250742196,1.0452,4636.2,4636.1,2.26578539]
[1755250742863,5.12624053,4636.2,4636.1,2.26578539]
[1755250744252,5.97040458,4636.2,4636.1,0.0008]
[1755250744588,8.12734345,4636.2,4636.1,0.0008]
[1755250745946,11.12734345,4636.2,4636.1,0.0008]
[1755250746151,18.71734345,4636.2,4636.1,0.0008]
[1755250747250,19.17974587,4636.2,4636.1,0.0008]
[1755250748398,19.17894587,4636.2,4636.1,0.0008]
[1755250748902,22.49294587,4636.2,4636.1,0.0008]
[1755250751298,6.23764474,4635.2,4635.1,0.001]
[1755250751491,9.65964474,4635.2,4635.1,0.001]
[1755250751802,11.8853428,4635.2,4635.1,0.001]
[1755250753088,9.72793859,4635.2,4635.1,0.001]
[1755250753262,4.18824053,4635.2,4635.1,0.001]
[1755250753678,7.50224053,4635.2,4635.1,0.001]
[1755250754173,10.70364474,4635.2,4635.1,0.001]
[1755250755902,8.54624053,4635.2,4635.1,0.001]
[1755250756304,7.50224053,4635.2,4635.1,0.001]
[1755250756806,4.18824053,4635.2,4635.1,0.001]
[1755250757105,7.50224053,4635.2,4635.1,0.001]
[1755250757503,4.18824053,4635.2,4635.1,0.001]
[1755250757802,7.50224053,4635.2,4635.1,0.001]
[1755250758810,7.93724053,4635.2,4635.1,0.001]
[1755250760412,8.54624053,4635.2,4635.1,0.001]
[1755250761611,7.50224053,4635.2,4635.1,0.001]
[1755250762508,4.18824053,4635.2,4635.1,2.15845075]
[1755250762708,7.39424053,4635.2,4635.1,2.37429583]
[1755250763709,7.39424053,4635.2,4635.1,0.21684508]
[1755250764082,7.39424053,4635.2,4635.1,2.37429583]
[1755250764083,4.08024053,4635.2,4635.1,2.37429583]
[1755250764288,4.08024053,4635.2,4635.1,2.26645075]
[1755250766496,7.39324053,4635.2,4635.1,2.26645075]
[1755250770509,7.34764053,4635.2,4635.1,2.26645075]
[1755250770835,3.313,4635.2,4635.1,2.7088477]
[1755250771930,0.4604,4635.9,4635.6,2.15717521]
[1755250772132,3.313,4635.8,4635.6,2.15717521]
[1755250772327,4.3918,4635.8,4635.6,2.15717521]
[1755250772848,4.3918,4635.8,4635.7,2.15717151]
[1755250773016,4.3918,4635.8,4635.6,2.15720492]
[1755250773446,4.3918,4635.8,4635.7,2.15717151]
[1755250773951,0.1084,4636.2,4636.0,2.15700655]
[1755250774144,3.312,4636.1,4636.0,2.15700655]
[1755250774543,3.312,4636.1,4635.9,2.15707305]
[1755250774845,3.7724,4636.1,4635.9,2.15707305]
[1755250775649,4.3908,4636.1,4635.9,2.15707305]
[1755250776248,0.4604,4636.0,4635.8,2.15711836]
[1755250776452,3.312,4635.9,4635.8,2.15711836]
[1755250777948,0.1084,4636.2,4636.0,2.15703134]
[1755250778116,3.312,4636.1,4636.0,2.15703134]